Workbook

Sheet Data Element Comparison
A1: REGS | B1: Old Element | C1: New Element | D1: REASON | E1: OLD BURDEN (all respondents) | F1: NEW BURDEN (all respondents) | G1: DIFFERENCE | H1: TYPE OF CHANGE
A2: 7 CFR Part 457 | B2: P05 - CIMS Request | C2: P05 - CIMS Request Record * | E2: 2000 | F2: 0 | G2: =F2-E2 -> -2000 | H2: Adj
B3: P-09 - Fund Designation | C3: P09 - Fund Designation Record (per company)* | E3: 11000 | F3: 0 | G3: -11000 | H3: Adj
B4: P10 - Policy | C4: P10 - Policy Record (Company Application) | E4: =83000+99000 -> 182000 | F4: =39472.62+39487.61 -> 78960.23 | G4: -103039.77 | H4: Adj
B5: P11 - Acreage | C5: P11 - Acreage Record (Company Acreage Report) | E5: =78000+90000 -> 168000 | F5: =835392.6+556225.02 -> 1391617.62 | G5: 1223617.62 | H5: Adj
B6: P12 - Payment | C6: P12 - Payment Record | E6: =45000+29000 -> 74000 | F6: =63604.5+63604.5 -> 127209 | G6: =F6-E6 -> 53209 | H6: Adj
B7: P13 - Inventory Value | C7: P13 - Inventory Value Record | E7: =5000+28000 -> 33000 | F7: =20912+1307 -> 22219 | G7: -10781 | H7: Adj
B8: P14 - Insurance in Force | C8: P14 - Insurance in Force Record * | E8: =74000+29000 -> 103000 | F8: 0 | G8: -103000 | H8: Adj
B9: P15 - Yields | C9: P15 - Yield History Record | E9: =79000+100000 -> 179000 | F9: =1113856.8+1668675.06 -> 2782531.86 | G9: 2603531.86 | H9: Adj
B10: P17 - Land Identifier | D10: Deleted P17 record because this information is no longer collected by RMA (not a record used in Policy Acceptance and Storage System (PASS)) | E10: =32000+38000 -> 70000 | F10: 0 | G10: -70000 | H10: Adj
B11: P20 - Loss Total | C11: P20 - Loss Total Record * | E11: =35000+0 -> 35000 | F11: 0 | G11: -35000 | H11: Adj
B12: P21 - Loss Line | C12: P21 - Loss Line Record (Company Claim for Indemnity) | E12: =37000+29000 -> 66000 | F12: =835390.5+834258.05 -> 1669648.55 | G12: 1603648.55 | H12: Adj
B13: P22 - Inventory Loss | C13: P22 - Inventory Loss Record | E13: =3000+0 -> 3000 | F13: =302.5+302.5 -> 605 | G13: =F13-E13 -> -2395 | H13: Adj
B14: P25 - Settlement/Arbitration | D14: Deleted P25 record because this information is no longer collected by RMA (not a record used in Policy Acceptance and Storage System (PASS)) | E14: =2000+0 -> 2000 | F14: 0 | G14: -2000 | H14: Adj
B15: P27 - Common Land Unit ID | C15: P27 - Land ID Record | E15: =5000+9000 -> 14000 | F15: =472809.48 -> 472809.48 | G15: 458809.48 | H15: Adj
C16: P48 - Delete Record * | D16: Added P48 when Data Acceptance System (DAS) moved to Policy Acceptance and Storage System (PASS) to allow insurance providers to delete records from RMA's system because they weren't able to in DAS | F16: 0 | G16: 0 | H16: Adj
B17: P49 - Delete | C17: P49 - Policy Delete Record | E17: =19000+0 -> 19000 | F17: =11124.9 -> 11124.9 | G17: -7875.1 | H17: Adj
C18: P51 - Conflict of Interest Policy Reporting Record | D18: Added P51 to implement the guidance in Manager's Bulletin MGR-08-001 http://www.rma.usda.gov/bulletins/managers/2008/mgr-08-001.pdf | F18: 2503.4 | G18: 2503.4 | H18: Adj
C19: P54 - Agency/Company Employee Data Record * | D19: Added P54 to implement the guidance in Manager's Bulletin MGR-08-001 http://www.rma.usda.gov/bulletins/managers/2008/mgr-08-001.pdf | F19: 0 | G19: 0 | H19: Adj
B20: P55 - Agent Data | C20: P55 - Agent Data Record * | E20: =2000+0 -> 2000 | F20: 0 | G20: -2000 | H20: Adj
B21: P56 - Loss Adjuster Data | C21: P56 - Loss Adjuster Data Record * | E21: =2000+0 -> 2000 | F21: 0 | G21: -2000 | H21: Adj
B22: P57 - Quality Control Reporting | C22: P57 - Quality Control Reporting Record | E22: =2000+0 -> 2000 | F22: 384 | G22: -1616 | H22: Adj
C23: P58 - Notice of Loss Reporting Record | D23: Added P58 to allow more reporting time in the event of a disaster as described in the narrative | F23: =33415.62+50049.32 -> 83464.94 | G23: 83464.94 | H23: Adj
B24: Data elements associated with Subpart U - Ineligibility for Prog. Under FCIA: Separate proposed rule ICR submitted. This will be deleted upon approval of final rule package. | F24: 1448 | G24: 1448
C25: Combined the following 6 line items (cells B25-30) into one category.
B26: P60 - Ineligible Producer Input | C26: Data elements associated with Subpart U - This will be deleted upon approval of separate final rule package (P60 - Ineligible Producer Input, P60E - Ineligible Producer Error, P61 - Ineligible Producer Output, P65 - CAT Fee Receivable, P70 - Reverse 70 Detail, P71 - Reverse 71 Trailer) | D26: Orignally deleted P60 from this package because this information is associated with the collection of information pursuant to 7 CFR, Part 400, Subpart U and created a new package for the information collection requirements necessary for administering 7 CFR, Part 400, Subpart U. Because Subpart U would now have its own collection package, the burden associated with Subpart U was removed from related data elements in this collection package before it was submitted to OMB for renewal. However, the final rule is still being written and until a final rule package is submitted and approved by OMB the removed associated burden this needs to be added back into the renewal submission of this collection. The burden and data elements associated with Subpart U has now been combined into one line item. | E26: =37000+0 -> 37000 | F26: 0 | G26: -37000 | H26: Adj
B27: P60E - Ineligible Producer Error | D27: Orignally deleted P60E from this package because this information is associated with the collection of information pursuant to 7 CFR, Part 400, Subpart U and created a new package for the information collection requirements necessary for administering 7 CFR, Part 400, Subpart U. Because Subpart U would now have its own collection package, the burden associated with Subpart U was removed from related data elements in this collection package before it was submitted to OMB for renewal. However, the final rule for each is still being written and until a final rule package is submitted and approved by OMB the removed associated burden this needs to be added back into the renewal submission of this collection. The burden and data elements associated with Subpart U has now been combined into one line item. | E27: =11000+0 -> 11000 | F27: 0 | G27: -11000 | H27: Adj
B28: P61 - Ineligible Producer Output | D28: Orignally deleted P61 from this package because this information is associated with the collection of information pursuant to 7 CFR, Part 400, Subpart U and created a new package for the information collection requirements necessary for administering 7 CFR, Part 400, Subpart U. Because Subpart U would now have its own collection package, the burden associated with Subpart U was removed from related data elements in this collection package before it was submitted to OMB for renewal. However, the final rule for each is still being written and until a final rule package is submitted and approved by OMB the removed associated burden this needs to be added back into the renewal submission of this collection. The burden and data elements associated with Subpart U has now been combined into one line item. | E28: =19000+0 -> 19000 | F28: 0 | G28: -19000 | H28: Adj
B29: P65 - CAT Fee Receivable | D29: Orignally deleted P65 from this package because this information is associated with the collection of information pursuant to 7 CFR, Part 400, Subpart U and created a new package for the information collection requirements necessary for administering 7 CFR, Part 400, Subpart U. Because Subpart U would now have its own collection package, the burden associated with Subpart U was removed from related data elements in this collection package before it was submitted to OMB for renewal. However, the final rule is still being written and until a final rule package is submitted and approved by OMB the removed associated burden this needs to be added back into the renewal submission of this collection. The burden and data elements associated with Subpart U has now been combined into one line item. | E29: =3000+0 -> 3000 | F29: 0 | G29: -3000 | H29: Adj
B30: P70 - Reverse 70 Detail | D30: Orignally deleted P70 from this package because this information is associated with the collection of information pursuant to 7 CFR, Part 400, Subpart U and created a new package for the information collection requirements necessary for administering 7 CFR, Part 400, Subpart U. Because Subpart U would now have its own collection package, the burden associated with Subpart U was removed from related data elements in this collection package before it was submitted to OMB for renewal. However, the final rule is still being written and until a final rule package is submitted and approved by OMB the removed associated burden for each of these needs to be added back into the renewal submission of this collection. The burden and data elements associated with Subpart U has now been combined into one line item listed below | E30: =5000+0 -> 5000 | F30: 0 | G30: -5000 | H30: Adj
B31: P71 - Reverse 71 Trailer | D31: Orignally deleted P71 from this package because this information is associated with the collection of information pursuant to 7 CFR, Part 400, Subpart U and created a new package for the information collection requirements necessary for administering 7 CFR, Part 400, Subpart U. Because Subpart U would now have its own collection package, the burden associated with Subpart U was removed from related data elements in this collection package before it was submitted to OMB for renewal. However, the final rule is still being written and until a final rule package is submitted and approved by OMB the removed associated burden this needs to be added back into the renewal submission of this collection. The burden and data elements associated with Subpart U has now been combined into one line item. | E31: =9000+0 -> 9000 | F31: 0 | G31: -9000 | H31: Adj
B32: P81 - Policy Holder Tracking Exp. Inq. | C32: P81 - Policy Holder Tracking Experience Inquiry Record * | E32: =24000+0 -> 24000 | F32: 0 | G32: -24000 | H32: Adj
B33: P123, 151 - AGR/AGR-L | D33: Deleted P123, 151 because this record is specific to only AGR and AGR-Lite. However, RMA included AGR and AGR-Lite policyholders in the records above because the information RMA collects is accounted for in those records. | E33: =5000+27000 -> 32000 | F33: 0 | G33: -32000 | H33: Adj
B34: P135-140 - LRP/LGM | D34: Deleted P135-140 because this record is specific to only LRP/LGM. However, RMA included LRP/LGM policyholders in the records above because the information RMA collects is accounted for in those records. | E34: =3000+23000 -> 26000 | F34: 0 | G34: -26000 | H34: Adj
B35: P150 - Disbursements | D35: Deleted P150 because this information comes from information already collected in the P20 record. | E35: =32000+0 -> 32000 | F35: 0 | G35: -32000 | H35: Adj
C36: Combined the following 12 line items (cells B37-48) into one category. | E36: 0 | F36: 8250 | G36: 8250 | H36: Adj
B37: Providing documentation in subsequent years including, but not limited to, acreage measurement service, for incorrect acreage reports. | C37: Additional information provided as needed | E37: 12 | F37: 0 | G37: -12
B38: Providing documentation for duplicate policies. | E38: 125 | F38: 0 | G38: -125
B39: Providing documentation and records of double cropping. | E39: 3066 | F39: 0 | G39: -3066
B40: Providing records of 3rd or later crop. | E40: 25 | F40: 0 | G40: -25
B41: Requesting an extension in writing when claim cannot be finalized in 60 days. | E41: 208 | F41: 0 | G41: -208
B42: Providing records for acreage that is less than a unit. | E42: 250 | F42: 0 | G42: -250
B43: Notice of harvested production if appraisal used for claim. | E43: 125 | F43: 0 | G43: -125
B44: Obtaining records for transitional acreage. | E44: 450 | F44: 0 | G44: -450
B45: 1st and 2nd crop APH acres and production. | E45: 250 | F45: 0 | G45: -250
B46: Determine good farming practices. | E46: 1000 | F46: 0 | G46: -1000
B47: Adjusting inconsistent yields. | E47: 1000 | F47: 0 | G47: -1000
B48: Provide organic records. | E48: 2000 | F48: 0 | G48: -2000
B49: Provide copy of malt barley contract. | E49: 250 | F49: 0 | G49: -250
B50: Reading insurance documents | E50: 624141 | F50: 278204 | G50: -345937 | H50: Adj
C51: Record Retention | D51: Added | F51: 167078.52 | G51: 167078.52 | H51: Adj
C52: Travel Time | D52: Added | F52: 864154 | G52: 864154 | H52: Adj
C53: * Crop insurance companies transmittal of data elements to RMA | D53: Added | F53: 3217.5 | G53: =F53-E53 -> 3217.5 | H53: Adj
B54: Data elements associated with Area Risk Protection Insurance (ARPI) - Separate proposed rule ICR submitted. This will be deleted upon approval of final rule package (P09, P10, P11, P12, P14, P15, P20, P21, P27, P51, P54, P55, P57, P60, P60E, P61, P65, P70, P71, P81) | D54: Area Risk Protection Insurance (ARPI) has a proposed rule collection that was submitted to OMB who in turn filed each with comment and continue. Because ARPI would now have its own collection package, the burden associated with ARPI was removed from related data elements in this collection package before it was submitted to OMB for renewal. However, the final rule is still being written and until a final rule package is submitted and approved by OMB the removed associated burden for these needs to be added back into the renewal submission of this collection. The burden and data elements associated with ARPI has now been combined into one line item. | F54: 176473 | G54: =F54-E54 -> 176473 | H54: Adj
B55: In previous submission, the total from Producer Data Element & Company Data Element tables 501,000 + 664,000 = 1,165,000. Figures 6 & 5 were inadvertantly transposed before splitting out and transferring to the main burden spreadsheet as 162,634 + 993,438 = 1,156,072 for Additional hours for crop insurance companies to provide info to RMA; and Providing info for insured crops (forms). | E55: -8928 | F55: 0 | G55: =F55-E55 -> 8928 | H55: Adj
D56: Total Adjustment* | E56: =SUM(E2:E55) -> 1788974 | F56: =SUM(F2:F55) -> 8141903 | G56: =SUM(G2:G55) -> 6352929
A57: *FCIC terminated the pilot crop insurance programs for California citrus (dollar plan of insurance), cherries (fixed dollar plan of insurance), and strawberries which reduced the burden by 12,886 hours. However, the burden has increased by 35,943 hours due to added hours for new pilot and 508(h) crop insurance programs for apiculture; fresh market beans; processing pumpkins; livestock gross margin pilot dairy; Actual Revenue History cherries, citrus, and strawberries; grass seed; and sesame. These hours were added/removed from the applicable data elements above.

Sheet Add or Remove Program Changes
A1: Program/Package Change | B1: Savings/Additional Burden Under Re-evaluated Calculations)
A2: Terminated Programs (CA Citrus, Cherries, Strawberries) | B2: -12886
A3: New Pilot and 508(h) Crop Insurance Programs (apiculture; fresh market beans; processing pumpkins; livestock gross margin pilot dairy; Actual Revenue History cherries, citrus, and strawberries; grass seed; and sesame) | B3: 35943
A4: Removed GRP/GRIP | B4: -176579
A5: Removed Subpart U | B5: 1448
A6: Total | B6: =SUM(B2:B5) -> -152074
